bitfinex/quotes_SOLUSD_20250803
["timestamp","ask_amount","ask_price","bid_price","bid_amount"]
[1754230291789,30.15320144,161.81,161.8,0.06]
[1754230293486,26.0,161.81,161.8,0.06]
[1754230293686,30.1529324,161.81,161.8,0.06]
[1754230294170,30.8629324,161.81,161.8,0.06]
[1754230294693,47.64761637,161.81,161.8,0.06]
[1754230294859,100.21619596,161.81,161.8,0.06]
[1754230296475,90.11761637,161.81,161.8,0.06]
[1754230297316,46.93761637,161.81,161.8,0.06]
[1754230297863,30.1529324,161.81,161.8,0.78]
[1754230298084,30.1529324,161.81,161.8,10.16857959]
[1754230299295,30.1529324,161.81,161.8,0.78]
[1754230299665,30.1529324,161.81,161.8,0.06]
[1754230301999,30.1529324,161.81,161.8,0.78]
[1754230303903,30.1529324,161.81,161.8,10.16857959]
[1754230304312,30.1529324,161.81,161.8,0.78]
[1754230304509,30.1529324,161.81,161.8,0.06]
[1754230306101,4.8129324,161.81,161.8,0.06]
[1754230306420,0.66,161.81,161.8,0.06]
[1754230307022,4.8129324,161.82,161.8,0.06]
[1754230307232,4.1529324,161.81,161.8,0.06]
[1754230312410,4.1529324,161.81,161.8,10.16857959]
[1754230312816,30.1529324,161.81,161.8,10.16857959]
[1754230314226,30.1529324,161.81,161.8,0.06]
[1754230314917,28.0103774,161.81,161.8,0.06]
[1754230315827,33.87394431,161.81,161.8,0.06]
[1754230316134,50.65862828,161.81,161.8,0.06]
[1754230316522,93.83862828,161.81,161.8,0.06]
[1754230317211,67.17862828,161.81,161.8,0.06]
[1754230319733,77.22720787,161.81,161.8,0.06]
[1754230320394,77.22720787,161.81,161.78,0.06]
[1754230320395,26.0,161.79,161.78,0.06]
[1754230321120,30.63824846,161.79,161.78,0.06]
[1754230321738,35.85640228,161.79,161.78,0.06]
[1754230321904,89.08498187,161.79,161.78,0.06]
[1754230322105,100.65151202,161.79,161.78,0.06]
[1754230322416,26.17326356,161.78,161.77,0.06]
[1754230322615,30.81151202,161.78,161.77,0.06]
[1754230322814,31.47151202,161.78,161.77,0.06]
[1754230324265,52.17326356,161.76,161.75,0.06]
[1754230324541,117.39802145,161.76,161.75,0.06]
[1754230324723,26.0,161.68,161.66,0.06]
[1754230324903,47.83824846,161.67,161.66,0.06]
[1754230325525,57.22682805,161.67,161.66,0.06]
[1754230325940,47.83824846,161.67,161.66,0.06]
[1754230326237,4.63824846,161.67,161.66,0.78]
[1754230326406,4.63824846,161.67,161.66,0.06]
[1754230326606,4.63824846,161.67,161.66,0.78]
[1754230328526,4.63824846,161.67,161.66,10.16857959]
[1754230329122,4.63824846,161.67,161.66,0.78]
[1754230330541,4.63824846,161.67,161.66,10.16857959]
[1754230330727,4.63824846,161.67,161.66,0.78]
[1754230331041,4.63824846,161.67,161.66,10.16857959]
[1754230331415,4.61167457,161.67,161.66,10.16857959]
[1754230332106,4.61167457,161.67,161.66,0.06]
[1754230332307,47.85167457,161.67,161.66,0.06]
[1754230334038,43.24,161.67,161.66,0.06]
[1754230334919,21.8202949,161.71,161.66,0.06]
[1754230334920,16.78468397,161.71,161.66,10.15857959]
[1754230335126,47.84661071,161.7,161.67,10.09857959]
[1754230335433,43.24,161.7,161.68,0.71]
[1754230335608,43.24,161.7,161.67,9.38857959]
[1754230336011,43.24,161.7,161.67,10.09857959]
[1754230336408,43.91,161.7,161.66,9.44857959]
[1754230336613,43.91,161.7,161.66,10.15857959]
[1754230337947,43.24,161.7,161.67,10.09857959]
[1754230338609,43.24,161.7,161.67,0.71]
[1754230339126,43.91,161.7,161.66,9.44857959]
[1754230339319,43.91,161.7,161.66,10.15857959]
[1754230339647,4.60721444,161.69,161.66,10.15857959]
[1754230339847,4.60721444,161.68,161.66,9.44857959]
[1754230340049,26.0,161.68,161.67,0.71]
[1754230340234,30.60721654,161.68,161.66,9.44857959]
[1754230340550,4.60721654,161.67,161.66,10.15857959]
[1754230341749,26.0,161.68,161.66,10.15857959]
[1754230341963,26.0,161.68,161.67,9.38857959]
[1754230342139,30.60527221,161.68,161.67,9.38857959]
[1754230342465,30.60527221,161.68,161.67,10.09857959]
[1754230343439,26.0,161.68,161.67,10.09857959]
[1754230343834,26.0,161.68,161.67,0.71]
[1754230344047,26.0,161.69,161.67,10.09857959]
[1754230344226,26.0,161.68,161.67,9.38857959]
[1754230344927,26.0,161.68,161.67,10.09857959]
[1754230346490,5.21527973,161.76,161.67,10.09857959]
[1754230346646,4.1419934,161.74,161.73,9.38857959]
[1754230347794,5.21527973,161.8,161.73,10.09857959]
[1754230348081,48.49527973,161.8,161.76,9.38857959]
[1754230348389,26.0,161.77,161.76,9.38857959]
[1754230348585,30.1415593,161.77,161.76,9.38857959]
[1754230349299,4.1415593,161.77,161.76,10.09857959]
[1754230349480,4.1415593,161.79,161.76,10.09857959]
[1754230349647,4.1415593,161.79,161.78,9.38857959]
[1754230351674,4.1715593,161.79,161.78,9.38857959]
[1754230352446,26.0,161.78,161.77,9.38857959]
[1754230352647,30.1415593,161.78,161.77,9.38857959]
[1754230355888,26.0,161.78,161.76,10.09857959]
[1754230356562,26.0,161.78,161.76,9.38857959]
[1754230357375,26.0,161.78,161.76,10.09857959]
[1754230359385,26.0,161.78,161.77,9.38857959]
[1754230360069,0.03,161.79,161.77,10.09857959]
[1754230360278,0.03,161.79,161.78,10.09857959]
[1754230372312,0.03,161.79,161.78,68.79857959]
[1754230376394,0.03,161.79,161.78,111.26857959]
[1754230377008,0.03,161.79,161.78,68.77857959]
[1754230378197,0.03,161.79,161.78,10.07857959]
[1754230380100,0.03,161.79,161.78,0.69]
[1754230380311,0.71,161.79,161.75,61.178699]
[1754230380495,0.03,161.79,161.77,9.38857959]
[1754230380697,0.71,161.79,161.77,9.38857959]
[1754230380886,0.68,161.78,161.77,9.38857959]
[1754230381612,0.03,161.79,161.77,9.38857959]
[1754230382418,0.71,161.79,161.77,9.38857959]
[1754230382707,0.03,161.79,161.76,9.38857959]
[1754230382916,0.68,161.78,161.76,9.38857959]
[1754230383396,0.03,161.79,161.76,9.38857959]
[1754230383808,0.71,161.79,161.76,9.38857959]
[1754230384009,0.71,161.79,161.77,9.38857959]
[1754230384486,0.68,161.78,161.75,43.46]
[1754230384694,0.68,161.78,161.74,0.06]
[1754230384926,9.38857959,161.77,161.74,0.06]
[1754230385142,0.68,161.76,161.74,0.06]
[1754230385616,0.68,161.75,161.74,0.06]
[1754230386023,9.38857959,161.78,161.74,0.06]
[1754230386229,0.68,161.77,161.74,0.06]
[1754230386437,0.68,161.76,161.74,0.06]
[1754230386847,0.68,161.75,161.74,0.06]
[1754230390924,14.21429587,161.77,161.74,0.06]
[1754230391136,4.14571628,161.76,161.74,0.06]
[1754230391328,4.82571628,161.76,161.74,0.06]
[1754230391725,4.14571628,161.76,161.74,0.06]
[1754230391936,0.68,161.75,161.74,0.06]
[1754230392522,4.82571628,161.75,161.74,0.06]
[1754230392726,14.21429587,161.75,161.74,0.06]
[1754230396644,55.81,161.71,161.6,40.31534339]
[1754230396819,9.38857959,161.61,161.6,0.06]
[1754230397021,62.20865534,161.61,161.6,0.06]
[1754230397215,9.10854867,161.6,161.59,0.2]
[1754230397449,42.46222003,161.6,161.59,0.2]
[1754230397618,28.57330439,161.6,161.59,0.2]
[1754230397822,37.96188398,161.6,161.59,0.2]
[1754230398021,37.96188398,161.6,161.58,0.06]
[1754230398022,9.38857959,161.59,161.58,0.06]
[1754230398242,23.76019321,161.59,161.58,0.06]
[1754230398636,19.15198059,161.59,161.58,0.06]
[1754230399947,35.95110302,161.59,161.58,0.06]
[1754230400761,40.53287385,161.59,161.58,0.06]
[1754230401946,50.53287385,161.59,161.58,0.06]
[1754230402764,56.72137561,161.59,161.58,0.06]
[1754230403138,46.38715757,161.59,161.58,0.06]
[1754230403955,10.0,161.57,161.56,0.06]
[1754230404176,26.0,161.52,161.46,0.69]
[1754230404341,9.38857959,161.49,161.46,0.69]
[1754230404663,4.58177083,161.48,161.46,0.69]
[1754230404975,9.38857959,161.49,161.47,0.69]
[1754230405143,9.38857959,161.49,161.43,98.68857959]
[1754230405144,9.38857959,161.49,161.43,44.62]
[1754230405469,9.38857959,161.49,161.47,0.69]
[1754230405670,9.38857959,161.49,161.43,54.00857959]
[1754230405671,26.0,161.45,161.43,44.62]
[1754230405841,35.38857959,161.45,161.43,44.62]
[1754230406042,35.38857959,161.45,161.43,45.31]
[1754230406453,35.38857959,161.45,161.42,0.69]
[1754230406653,35.38857959,161.45,161.43,0.69]
[1754230407362,35.38857959,161.44,161.43,0.69]
[1754230407887,35.38857959,161.44,161.41,0.89]
[1754230408090,26.17326356,161.42,161.41,0.2]
[1754230408278,52.17326356,161.42,161.41,0.2]
[1754230408653,42.78468397,161.42,161.41,0.2]
[1754230408853,52.17326356,161.42,161.41,0.2]
[1754230409379,52.85326356,161.42,161.41,0.2]
[1754230409559,26.0,161.39,161.35,0.69]
[1754230409762,9.38857959,161.38,161.35,0.69]
[1754230409962,9.38857959,161.37,161.31,44.64]
[1754230410168,26.0,161.38,161.35,0.69]
[1754230410169,9.38857959,161.36,161.35,0.69]
[1754230410381,26.0,161.33,161.31,0.69]
[1754230410598,26.0,161.33,161.32,0.69]
[1754230410757,35.38857959,161.33,161.3,0.69]
[1754230410950,9.38857959,161.32,161.3,0.69]
[1754230411252,9.38857959,161.31,161.28,0.69]
[1754230411570,11.06250912,161.3,161.28,0.69]
[1754230411873,11.06250912,161.3,161.26,9.38857959]
[1754230412071,11.06250912,161.3,161.29,0.69]
[1754230412283,11.06250912,161.3,161.29,10.07857959]
[1754230412652,11.06250912,161.3,161.29,15.78584147]
[1754230414364,11.06250912,161.3,161.29,60.62584147]
[1754230414763,11.06250912,161.3,161.29,0.69]
[1754230415579,11.06250912,161.3,161.28,15.09584147]
[1754230415761,11.06250912,161.3,161.29,0.69]
[1754230416470,11.06250912,161.3,161.26,15.78584147]
[1754230416674,11.06250912,161.3,161.28,0.06]
[1754230418788,11.06250912,161.3,161.28,0.75]
[1754230419167,11.06250912,161.3,161.28,0.06]
[1754230420498,41.09584147,161.29,161.28,0.06]
[1754230420782,49.31272827,161.29,161.28,0.06]
[1754230421385,34.2168868,161.29,161.28,0.06]
[1754230421588,52.8718628,161.29,161.28,0.75]
[1754230421976,8.2168868,161.29,161.28,15.84584147]
[1754230422380,0.69,161.38,161.28,47.72636691]
[1754230422581,0.72,161.41,161.37,15.09584147]
[1754230422791,19.364542,161.41,161.37,15.09584147]
[1754230422973,8.06741625,161.4,161.35,44.86]
[1754230423179,8.75741625,161.4,161.35,59.95584147]
[1754230423379,8.06741625,161.4,161.35,59.95584147]
[1754230423575,41.78584147,161.39,161.28,15.15584147]
[1754230423810,15.09584147,161.37,161.32,15.09584147]
[1754230424105,15.09584147,161.37,161.33,15.09584147]
[1754230424106,26.0,161.37,161.33,15.09584147]
[1754230424283,0.72,161.36,161.33,15.09584147]
[1754230424681,0.72,161.36,161.34,15.09584147]
[1754230425105,0.72,161.36,161.33,15.09584147]
[1754230426409,26.0,161.38,161.34,15.09584147]
[1754230426706,26.72,161.38,161.35,15.09584147]
[1754230427010,26.0,161.38,161.35,15.09584147]
[1754230427303,26.0,161.38,161.32,44.94]
[1754230427304,26.0,161.38,161.32,0.06]
[1754230427511,41.09584147,161.35,161.28,0.06]
[1754230427686,15.09584147,161.31,161.28,0.06]
[1754230427882,15.09584147,161.3,161.28,0.06]
[1754230428203,26.0,161.29,161.28,0.06]
[1754230428391,26.72,161.29,161.28,0.06]
[1754230428921,15.81584147,161.29,161.28,0.06]
[1754230429293,0.72,161.29,161.28,0.06]
[1754230429533,15.81584147,161.29,161.28,0.06]
[1754230430513,32.60052544,161.29,161.28,0.06]
[1754230431633,32.60052544,161.29,161.15,26.0]
[1754230431832,15.09584147,161.18,161.12,0.12]
[1754230431997,26.0,161.21,161.12,60.13584147]
[1754230432327,15.09584147,161.19,161.13,15.09584147]
[1754230432906,15.09584147,161.18,161.13,15.09584147]
[1754230433114,15.09584147,161.19,161.13,15.09584147]
[1754230433318,15.81584147,161.18,161.13,15.09584147]
[1754230433519,0.72,161.18,161.13,15.09584147]
[1754230433712,15.09584147,161.18,161.12,44.92]
[1754230433919,26.0,161.2,161.12,15.09584147]
[1754230433920,15.81584147,161.17,161.12,15.09584147]
[1754230434102,0.72,161.17,161.11,45.12]
[1754230434302,15.81584147,161.17,161.11,45.12]
[1754230434500,15.81584147,161.17,161.12,15.09584147]
[1754230434699,15.81584147,161.17,161.11,45.12]
[1754230434920,0.72,161.17,161.12,15.09584147]
[1754230435118,41.09584147,161.2,161.15,15.09584147]
[1754230435408,41.81584147,161.2,161.15,15.09584147]
[1754230435612,41.81584147,161.2,161.14,15.09584147]
[1754230435828,26.0,161.16,161.14,15.09584147]
[1754230436028,26.72,161.16,161.11,45.12]
[1754230436216,26.0,161.16,161.11,0.2]
[1754230436415,0.72,161.15,161.11,15.29584147]
[1754230437037,0.72,161.15,161.11,0.2]
[1754230437753,26.0,161.16,161.14,15.09584147]
[1754230437945,0.72,161.15,161.11,0.2]
[1754230438254,26.0,161.13,161.11,0.2]
[1754230438840,0.72,161.14,161.11,0.2]
[1754230439014,0.72,161.14,161.11,15.29584147]
[1754230439414,0.72,161.13,161.11,0.2]
[1754230439645,0.72,161.12,161.11,0.2]
[1754230439853,15.09584147,161.15,161.11,0.2]
[1754230439854,0.72,161.15,161.11,15.29584147]
[1754230440029,26.0,161.14,161.11,15.29584147]
[1754230440229,26.0,161.14,161.11,0.2]
[1754230440746,26.72,161.13,161.11,0.2]
[1754230441450,26.72,161.16,161.12,15.09584147]
[1754230441758,26.72,161.16,161.11,15.29584147]
[1754230442051,16.78468397,161.19,161.11,15.29584147]
[1754230442052,0.72,161.19,161.15,15.09584147]
[1754230442226,4.53980562,161.18,161.15,15.09584147]
[1754230442431,4.53980562,161.17,161.14,15.09584147]
[1754230442631,15.09584147,161.18,161.12,0.12]
[1754230442816,0.72,161.16,161.11,15.29584147]
[1754230443017,0.72,161.16,161.12,15.09584147]
[1754230443234,26.72,161.15,161.11,0.2]
[1754230443442,26.72,161.15,161.12,15.09584147]
[1754230443618,5.89496789,161.23,161.14,15.09584147]
[1754230443832,4.54164236,161.22,161.15,45.24]
[1754230444030,4.54164236,161.21,161.15,45.24]
[1754230444230,4.54164236,161.2,161.17,15.09584147]
[1754230444438,5.26164236,161.19,161.11,0.32]
[1754230444666,15.81584147,161.18,161.12,60.23584147]
[1754230444863,0.72,161.17,161.12,45.14]
[1754230445171,0.72,161.16,161.11,0.2]
[1754230445387,0.72,161.15,161.12,15.09584147]
[1754230446060,26.72,161.15,161.12,15.09584147]
[1754230447454,0.72,161.15,161.11,15.29584147]
[1754230447956,5.27147077,161.14,161.11,0.2]
[1754230448161,26.0,161.12,161.11,0.2]
[1754230448578,26.72,161.12,161.11,0.2]
[1754230449071,31.27373001,161.12,161.11,0.2]
[1754230449436,35.37277458,161.12,161.11,0.2]
[1754230449632,30.81904457,161.12,161.11,0.2]
[1754230449941,24.47053189,161.12,161.11,0.2]
[1754230450167,35.37469042,161.12,161.11,0.2]
[1754230451677,35.37469042,161.12,161.11,15.29584147]
[1754230451678,34.65469042,161.12,161.11,15.29584147]
[1754230451990,4.55564585,161.12,161.11,15.29584147]
[1754230452284,4.5620742,161.12,161.11,15.29584147]
[1754230452884,7.80772613,161.16,161.11,15.41584147]
[1754230453084,8.66725229,161.15,161.13,15.09584147]
[1754230453242,4.56214124,161.14,161.13,15.09584147]
[1754230453442,4.56449111,161.14,161.13,15.09584147]
[1754230453653,4.56449111,161.14,161.11,0.32]
[1754230453885,4.10511105,161.15,161.13,15.09584147]
[1754230454194,4.56440103,161.14,161.13,15.09584147]
[1754230454698,4.56440103,161.14,161.12,15.09584147]
[1754230454858,4.56440103,161.13,161.11,0.2]
[1754230455061,4.10511105,161.15,161.12,15.09584147]
[1754230455300,4.56621753,161.14,161.11,0.2]
[1754230455463,4.56621753,161.13,161.11,15.29584147]
[1754230455804,4.56621753,161.13,161.11,0.2]
[1754230455958,4.56621753,161.12,161.11,0.2]
[1754230457299,5.27621753,161.12,161.11,0.2]
[1754230457470,26.0,161.1,161.09,0.06]
[1754230457663,49.7690873,161.1,161.09,0.06]
[1754230457861,50.4790873,161.1,161.09,0.06]
[1754230458080,35.38324583,161.1,161.09,0.06]
[1754230458261,50.4790873,161.1,161.09,0.06]
[1754230460288,35.38324583,161.1,161.09,0.06]
[1754230461397,50.4790873,161.1,161.09,0.06]
[1754230461908,35.38324583,161.1,161.09,0.06]
[1754230462112,50.4790873,161.1,161.09,0.06]
[1754230462874,35.38324583,161.1,161.09,0.06]
[1754230463106,50.4790873,161.1,161.09,0.06]
[1754230463788,35.38324583,161.1,161.09,0.06]
[1754230463972,50.4790873,161.1,161.09,0.06]
[1754230464912,52.1679298,161.1,161.09,0.06]
[1754230465079,67.26377127,161.1,161.09,0.06]
[1754230466820,35.38324583,161.1,161.09,0.06]
[1754230467202,50.4790873,161.1,161.09,0.06]
[1754230467825,9.38324583,161.1,161.09,0.06]
[1754230468124,24.4790873,161.1,161.09,0.06]
[1754230468817,8.67324583,161.1,161.09,0.06]
[1754230469206,4.56621753,161.1,161.09,0.06]
[1754230469715,4.56621753,161.1,161.09,15.47584147]
[1754230470115,4.11234802,161.15,161.09,15.47584147]
[1754230470300,4.56967414,161.14,161.1,15.09584147]
[1754230470495,20.37551561,161.13,161.09,0.06]
[1754230470822,8.68202216,161.12,161.09,0.06]
[1754230471024,4.56967414,161.11,161.09,0.06]
[1754230471319,4.56967414,161.1,161.09,0.06]
[1754230471625,5.27967414,161.1,161.09,0.06]
[1754230471808,50.48786363,161.1,161.09,0.06]
[1754230472304,29.66283152,161.1,161.09,0.06]
[1754230472505,26.0,161.07,161.03,15.09584147]
[1754230472704,26.0,161.07,161.02,15.09584147]
[1754230472705,9.39202216,161.06,161.02,15.09584147]
[1754230472904,4.56967414,161.05,161.02,15.09584147]
[1754230473105,8.68202216,161.04,161.02,15.09584147]
[1754230473309,8.68202216,161.03,161.01,15.09584147]
[1754230473525,4.56967414,161.02,160.98,0.2]
[1754230473725,46.25501182,161.07,160.98,0.2]
[1754230473726,0.71,161.01,160.98,0.2]
[1754230473938,30.8402022,161.04,160.99,15.09584147]
[1754230474145,9.42802665,161.03,160.98,0.2]
[1754230474320,8.71802665,161.02,160.98,0.2]
[1754230474515,8.71802665,161.01,160.98,15.29584147]
[1754230474831,8.71802665,161.0,160.99,15.09584147]
[1754230475048,26.0,160.99,160.98,0.2]
[1754230475233,34.71802665,160.99,160.98,0.2]
[1754230475547,35.42802665,160.99,160.98,0.2]
[1754230475707,34.71802665,160.99,160.98,0.2]
[1754230477912,42.35327056,160.99,160.98,0.2]
[1754230481453,16.03754215,160.99,160.98,15.61584147]
[1754230481654,0.71,161.1,160.99,16.78468397]
[1754230481825,12.03187088,161.09,160.99,16.78468397]
[1754230482027,12.03187088,161.09,161.06,15.09584147]
[1754230482028,4.5927239,161.08,161.06,15.09584147]
[1754230482366,4.5927239,161.07,161.05,15.09584147]
[1754230482526,26.0,161.07,161.06,15.09584147]
[1754230482728,30.59356179,161.07,161.06,15.09584147]
[1754230483050,30.59356179,161.07,160.98,16.98468397]
[1754230483051,26.0,161.06,160.98,16.98468397]
[1754230483227,26.0,161.06,161.05,15.09584147]
[1754230483422,4.59392746,161.06,161.05,15.09584147]
[1754230483623,4.59392746,161.06,160.98,16.98468397]
[1754230483821,0.72,161.08,161.05,15.09584147]
[1754230484051,26.0,161.06,160.98,16.98468397]
[1754230484256,4.59395122,161.05,160.98,16.98468397]
[1754230484546,4.59395122,161.04,160.98,16.98468397]
[1754230484761,26.0,161.06,160.98,16.98468397]
[1754230484933,4.59460488,161.05,160.98,16.98468397]
[1754230485137,26.0,161.06,160.98,16.98468397]
[1754230485138,4.59460488,161.04,160.98,16.98468397]
[1754230485340,26.0,161.06,160.98,16.98468397]
[1754230485539,4.59461573,161.05,160.98,16.98468397]
[1754230485843,4.59461573,161.04,160.98,16.98468397]
[1754230486053,26.0,161.06,160.98,16.98468397]
[1754230486239,26.0,161.06,161.05,15.09584147]
[1754230486731,7.71985236,161.09,161.05,15.09584147]
[1754230486933,7.71985236,161.09,161.08,15.09584147]
[1754230487151,7.71985236,161.09,160.98,27.60587914]
[1754230487351,7.71985236,161.09,161.08,15.09584147]
[1754230492439,7.71985236,161.09,161.05,45.36]
[1754230492645,7.71985236,161.09,161.08,15.09584147]
[1754230493742,31.18917035,161.15,161.14,15.09584147]
[1754230493743,0.03,161.15,161.14,15.09584147]
[1754230495735,0.03,161.17,161.16,30.19168294]
[1754230497471,7.60661998,161.22,161.16,30.19168294]
[1754230497674,7.60661998,161.22,161.21,15.09584147]
[1754230499468,0.72,161.25,161.21,15.09584147]
[1754230499773,0.72,161.25,161.24,15.09584147]
[1754230500295,4.13216891,161.26,161.24,15.09584147]
[1754230500462,0.75,161.28,161.22,45.3]
[1754230500669,0.03,161.28,161.27,15.09584147]
[1754230501252,0.75,161.28,161.27,15.09584147]
[1754230502085,0.03,161.28,161.27,15.09584147]
[1754230502993,0.03,161.28,161.27,60.35584147]
[1754230504583,0.75,161.28,161.22,16.78468397]
[1754230504903,0.75,161.28,161.27,15.09584147]
[1754230505207,0.03,161.28,161.27,15.09584147]
[1754230505492,0.75,161.28,161.27,15.09584147]
[1754230506592,0.03,161.28,161.27,15.09584147]
[1754230506777,0.03,161.28,161.27,119.03584147]
[1754230507915,0.03,161.28,161.27,92.21636691]
[1754230508407,0.1,161.32,161.28,16.78468397]
[1754230508623,0.1,161.32,161.31,15.09584147]
[1754230508901,0.75,161.38,161.31,77.08052544]
[1754230509110,0.75,161.38,161.37,15.09584147]
[1754230509581,0.75,161.38,161.36,45.22]
[1754230509783,0.03,161.38,161.37,15.09584147]
[1754230510372,0.75,161.38,161.37,15.09584147]
[1754230511704,0.75,161.38,161.36,45.22]
[1754230511892,41.09584147,161.37,161.36,44.5]
[1754230512092,26.72,161.37,161.36,44.5]
[1754230513195,26.72,161.37,161.34,15.09584147]
[1754230513411,26.0,161.32,161.3,15.09584147]
[1754230513574,26.0,161.32,161.31,45.2]
[1754230514000,26.0,161.32,161.31,60.29584147]
[1754230514203,26.67,161.32,161.31,60.29584147]
[1754230514405,0.67,161.32,161.31,60.29584147]
[1754230514977,26.0,161.31,161.3,45.22]
[1754230515177,26.67,161.31,161.3,60.31584147]
[1754230515586,26.0,161.32,161.3,60.31584147]
[1754230515789,26.0,161.32,161.3,45.22]
[1754230516111,0.67,161.32,161.31,15.09584147]
[1754230516309,26.0,161.33,161.31,15.09584147]
[1754230516612,26.67,161.33,161.31,15.09584147]
[1754230517530,15.76584147,161.32,161.22,59.35]
[1754230517807,26.0,161.33,161.24,15.09584147]
[1754230517808,26.0,161.29,161.24,15.09584147]
[1754230517994,16.78468397,161.33,161.23,45.22]
[1754230517995,26.0,161.27,161.25,15.09584147]
[1754230518191,26.0,161.27,161.26,60.31584147]
[1754230518403,26.0,161.27,161.26,45.22]
[1754230518606,0.67,161.27,161.26,45.22]
[1754230518987,15.76584147,161.27,161.26,45.22]
[1754230519214,15.76584147,161.27,161.22,45.2]
[1754230519418,26.0,161.23,161.22,45.2]
[1754230519721,26.67,161.23,161.22,45.2]
[1754230521618,26.0,161.21,161.2,45.22]
[1754230521790,26.67,161.21,161.2,45.22]
[1754230522635,15.76584147,161.21,161.2,45.22]
[1754230522922,15.76584147,161.21,161.18,45.18]
[1754230523220,0.67,161.2,161.18,45.18]
[1754230523389,15.09584147,161.21,161.18,45.18]
[1754230523588,0.67,161.19,161.18,45.18]
[1754230524104,0.67,161.19,161.15,60.27584147]
[1754230524312,16.78468397,161.24,161.15,45.18]
[1754230524313,26.0,161.17,161.15,45.18]
[1754230524508,26.0,161.17,161.15,60.27584147]
[1754230524710,0.67,161.18,161.16,15.09584147]
[1754230525494,26.0,161.17,161.15,45.18]
[1754230525708,26.0,161.17,161.16,15.09584147]
[1754230525913,26.67,161.23,161.16,15.74584147]
[1754230526127,26.67,161.23,161.21,15.09584147]
[1754230526430,26.0,161.23,161.22,15.09584147]
[1754230526604,0.67,161.28,161.22,60.27584147]
[1754230526805,0.67,161.28,161.22,45.18]
[1754230526996,4.10213264,161.29,161.27,15.09584147]
[1754230527315,26.67,161.29,161.26,45.22]
[1754230527514,26.0,161.27,161.26,45.22]
[1754230527688,0.67,161.28,161.26,45.22]
[1754230528086,26.0,161.24,161.23,45.22]
[1754230528309,26.0,161.21,161.2,45.26]
[1754230528518,26.67,161.21,161.2,45.26]
[1754230529612,0.67,161.21,161.2,45.26]
[1754230529899,26.0,161.21,161.2,45.26]
[1754230530393,45.87299264,161.21,161.2,45.26]
[1754230530608,45.87299264,161.21,161.18,45.26]
[1754230530817,19.87299264,161.2,161.18,45.26]
[1754230530996,4.10715117,161.19,161.18,45.26]
[1754230531392,4.77715117,161.2,161.18,45.26]
[1754230531835,0.67,161.19,161.18,45.26]
[1754230532189,26.0,161.16,161.13,15.09584147]
[1754230532513,26.0,161.16,161.14,45.22]
[1754230533626,26.0,161.17,161.14,60.31584147]
[1754230533795,4.11526824,161.16,161.15,15.74584147]
[1754230534202,26.0,161.17,161.15,15.74584147]
[1754230534429,26.0,161.17,161.16,15.09584147]
[1754230534631,26.0,161.16,161.14,45.22]
[1754230534838,0.67,161.15,161.14,45.22]
[1754230535132,30.78602466,161.15,161.14,45.22]
[1754230535822,4.78602466,161.15,161.14,45.22]
[1754230536805,45.88186613,161.15,161.12,45.18]
[1754230537123,15.09584147,161.13,161.08,15.09584147]
[1754230537336,5.15917035,161.15,161.09,45.2]
[1754230537337,26.0,161.1,161.09,45.2]
[1754230537632,30.11640921,161.1,161.09,45.2]
[1754230537847,4.78640921,161.1,161.09,45.2]
[1754230538057,4.78640921,161.1,161.07,45.2]
[1754230538854,4.11640921,161.1,161.07,60.29584147]
[1754230539213,4.78640921,161.1,161.07,45.2]
[1754230539441,4.11640921,161.1,161.07,45.2]